{"text_format":"1","workbook":"xlsx","n_sheets":2,"sheets":["Antrag","Anlage 1"],"not_rendered":{"charts":0,"images":4,"macros":1,"external_links":0,"defined_names":8,"comments":0,"pivot_tables":0},"unopened":[],"bounds":{"document_bytes":16777216,"sheet_cells":100000,"rows_first":2000,"rows_last":500,"rows_between":2000,"halvings":0,"cell_chars":16384,"cell_head_chars":4096},"cells_cut":0,"cells_raw":0,"read":"whole","date_system":"1900"}

{"sheet":"Antrag","index":0,"n_rows":283,"n_cols":12,"rows_kept":283,"cut":false,"hidden":false,"merged":[[254,1,254,9],[255,1,255,8],[234,1,234,8],[245,1,245,8],[219,1,219,8],[241,1,241,8],[239,1,239,8],[120,1,120,8],[200,6,200,7],[161,6,161,7],[163,1,163,5],[163,6,163,7],[122,1,122,5],[180,1,180,8],[204,1,204,6],[207,1,207,8],[217,1,217,8],[228,1,228,8],[230,1,230,8],[205,1,205,8],[211,1,211,8],[221,1,221,8],[223,1,223,8],[227,1,227,8],[193,1,193,8],[248,1,248,8],[246,1,246,8],[174,1,174,8],[215,1,215,8],[198,1,198,8],[213,1,213,8],[191,1,191,5],[191,6,191,7],[237,1,237,8],[194,1,194,8],[184,2,184,7],[186,2,186,7],[200,2,200,5],[243,1,243,8],[235,1,235,8],[225,1,225,8],[190,1,190,8],[177,1,177,8],[105,3,105,8],[104,1,104,3],[106,2,106,8],[107,2,107,8],[169,1,169,5],[98,1,98,8],[159,1,159,5],[87,1,87,8],[159,6,159,7],[161,1,161,5],[114,1,114,8],[117,1,117,2],[140,1,140,8],[148,1,148,8],[149,1,149,8],[150,1,150,8],[130,6,130,8],[131,6,131,8],[130,2,130,5],[131,2,131,5],[3,7,3,9],[66,3,66,8],[62,1,62,8],[3,0,3,3],[4,0,4,3],[65,3,65,8],[7,1,7,5],[18,1,22,8],[26,3,26,8],[24,1,24,8],[9,2,12,7],[8,7,8,8],[14,1,14,8],[16,1,16,8],[60,3,60,8],[3,4,3,6],[33,1,33,2],[37,1,37,6],[29,3,29,8],[29,1,29,2],[63,3,63,8],[47,1,47,8],[51,1,51,8],[56,1,56,2],[4,4,4,6],[25,3,25,8],[28,3,28,8],[4,7,5,9],[27,3,27,8],[199,1,199,8],[142,1,142,8],[31,6,31,8],[73,3,73,4],[126,1,126,7],[127,1,127,8],[136,1,136,8],[129,6,129,8],[129,2,129,5],[138,1,138,9],[124,1,124,5],[134,6,134,8],[134,2,134,5],[93,1,93,8],[59,3,59,8],[77,1,77,8],[74,5,74,8],[56,3,56,8],[89,1,89,6],[251,5,251,8],[35,3,35,7],[35,1,35,2],[34,1,34,8],[117,3,117,8],[132,6,132,8],[45,1,45,8],[39,1,39,6],[83,2,83,8],[85,2,85,8],[64,3,64,8],[53,3,53,6],[81,2,81,8],[41,1,41,8],[121,6,121,7],[112,1,112,2],[79,2,79,8],[250,1,250,3],[249,5,250,8],[195,2,195,3],[101,3,101,8],[209,1,209,8],[119,1,119,7],[103,1,103,8],[31,1,31,5],[73,5,73,8],[75,5,75,8],[202,1,202,8],[176,1,176,8],[189,1,189,8],[195,4,195,8],[182,1,182,9],[144,1,144,8],[179,1,179,8],[112,3,112,7],[92,1,92,8],[116,3,116,8],[96,3,96,8],[96,1,96,2],[188,1,188,8],[132,2,132,5],[168,6,168,7],[122,6,122,7],[155,1,155,8],[156,1,156,8],[147,1,147,8],[152,1,152,8],[172,1,172,8],[257,0,257,8],[48,3,48,6],[74,3,74,4],[101,1,101,2],[109,1,109,8],[54,3,54,7],[49,1,49,2],[49,3,49,7],[91,1,91,8],[90,1,90,8],[53,1,53,2],[54,1,54,2],[169,6,169,7],[146,1,146,8],[166,1,166,5],[158,1,158,8],[153,1,153,8],[171,1,171,8],[48,1,48,2],[75,3,75,4],[67,3,67,8],[232,1,232,8],[253,1,253,8],[251,1,251,3]]}
[]
[]
[]
[]
[null,null,null,null,null,null,null,"Europäische Union"]
[]
[]
[null,"Landeskreditbank Baden-Württemberg (L-Bank)\nBereich Finanzhilfen\nSchlossplatz 10\n76113 Karlsruhe"]
[null,null,null,null,null,null,null,"Stand: August 2016"]
[null,null,"Antrag \nauf Gewährung eines Zuschusses \nnach dem Förderprogramm Fachkurse\naus Mitteln des Europäischen Sozialfonds, Ziel Investitionen in Wachstum und Beschäftigung"]
[]
[]
[]
[]
[null,"Spezifisches Ziel:\nA 5.1 - Stärkung der Wettbewerbsfähigkeit von Erwerbstätigen und mittelständischer Wirtschaft"]
[]
[null,"Aktenzeichen des Ministeriums für Wirtschaft, Arbeit und Wohnungsbau: 4305.85/2"]
[]
[null,"Wichtige Informationen zum Verfahren: \nDas Programm läuft höchstens solange, wie Mittel aus dem Europäischen Sozialfonds hierfür zur Verfügung stehen. Zuschüsse unter 10.000 € werden grundsätzlich nicht bewilligt. Der abrechenbare Höchstzuschuss pro Weiterbildungsträger und Jahr (12 Monate) liegt bei 300.000 Euro. Der Antrag ist rechtzeitig vor Kursbeginn bei der L-Bank, Bereich Finanzhilfen, Schlossplatz 10, 76113 Karlsruhe einzureichen. Empfohlen wird, Kurse, die zwischen dem 01.09 und 31.08 des Folgejahres beginnen, in einem Antrag zusammenzufassen.\nDie L-Bank entscheidet über die Bewilligung des Zuschusses. Die Bearbeitung der Anträge erfolgt in der Reihenfolge der vollständigen Eingänge bei der L-Bank."]
[]
[]
[]
[]
[]
["1.","Antragsteller (Weiterbildungsträger)"]
["*)","Name"]
["*)","Straße, Hausnummer"]
["*)","PLZ, Ort"]
["*)","E-Mail"]
["*)","Webseite (soweit vorhanden)"]
[]
[null,"Kunden-Nummer der L-Bank    (falls bereits vorhanden)"]
[]
["2.","Antragsberechtigung"]
["2.1.","Sind Sie ein öffentlicher oder privater Weiterbildungsträger?\nAntragsberechtigte Veranstalter sind öffentliche und private Weiterbildungsträger, die mit ihrem beruflichen Weiterbildungsangebot schon mindestens 3 Jahre am Markt sind. Nicht antragsberechtigt sind die unter Nr. 2.2. genannten Einrichtungen."]
[null,"            Nein",null,"Falls \"Nein\", benötigen wir keine weiteren Angaben."]
[]
["*)","            Ja, des öffentlichen Rechts"]
[]
["*)","            Ja, des privaten Rechts"]
[]
[null,"      falls ja, wie lange sind Sie schon mit Ihrem beruflichen Weiterbildungsangebot am Markt?"]
[]
[null,null,null,null,"Jahre und",null,"Monate"]
[]
["2.2.","Handelt es sich bei Ihrer Einrichtung um:"]
[]
["►","eine öffentliche, private oder kirchliche Hochschule mit oder ohne staatliche Anerkennung oder um deren rechtlich unselbständigen Institute oder sonstigen rechtlich unselbständigen Einrichtungen?"]
[null,"            Ja",null,"Falls \"Ja\", benötigen wir keine weiteren Angaben."]
[null,"            Nein",null,"Falls \"Nein\", beantworten Sie bitte die nächste Frage."]
[]
["►","einen Weiterbildungsträger, über dessen Vermögen ein Insolvenzverfahren beantragt oder eröffnet worden ist?"]
[]
[null,"            Ja",null,"Falls \"Ja\", benötigen wir keine weiteren Angaben."]
[null,"            Nein",null,"Falls \"Nein\", beantworten Sie bitte die nächste Frage."]
[]
["*) 3.","Wirtschaftszweig:",null,"Bitte wählen Sie mithilfe des Dropdown die zutreffende Branche aus! "]
[]
["4.","Ort der Durchführung der Maßnahme"]
["*)","Straße, Hausnummer"]
["*)","PLZ, Ort"]
[]
["5.","Name der verantwortlichen Ansprechperson"]
["*)","Name"]
["*)","Vorname"]
["*)","Telefon"]
["*)","Telefax"]
["*)","E-Mail"]
[]
["6.","Ort der Ablage der Belege"]
[null,"         beim Antragsteller"]
[null,"         am Ort der Maßnahme"]
[null,"         an anderer Stelle, bitte Name und Anschrift angeben: "]
[null,null,null,"Name"]
[null,null,null,"Straße, Hausnummer"]
[null,null,null,"PLZ, Ort"]
[]
["7.","Zielgruppen\n"]
[]
[null,"►","Beschäftigte aus Unternehmen, deren Beschäftigungsort oder Wohnort in Baden-Württemberg liegt."]
[]
[null,"►","Unternehmer/innen, Freiberufler/innen sowie Existenzgründer/innen in Baden-Württemberg, die ihren Unternehmenssitz oder Wohnsitz in Baden-Württemberg haben."]
[]
[null,"►","Gründungswillige, die in Baden-Württemberg wohnhaft oder beschäftigt sind."]
[]
[null,"►","Wiedereinsteiger/innen, die in Baden-Württemberg wohnhaft sind."]
[]
[null,"Hinweise:\n- Der Antragsteller stellt eigenverantwortlich sicher, dass alle geförderten Teilnehmer/innen, auch   \n  Selbstzahler/innen, einer der genannten Zielgruppen angehören, also in Baden-Württemberg \n  wohnhaft oder beschäftigt sind bzw. ihren Unternehmenssitz in Baden-Württemberg haben.\n- Nicht förderfähig sind Beschäftigte von Bund, Ländern und kommunalen Gebietskörperschaften.\n- Eigene Mitarbeiter/innen des Weiterbildungsträgers sind vom Weiterbildungsträger \n  grundsätzlich nicht abrechenbar.\n- Interessierte mit geringem Einkommen: Interessierten, die ein zu versteuerndes Einkommen \n  von bis zu 20.000€ bzw. 40.000€ in Lebensgemeinschaften haben, können über das \n  Förderprogramm \"Bildungsprämie\", www.bildungspraemie.info ggf. eine finanziell attraktivere \n  Förderung beantragen.\n"]
[]
["8.","Angaben zu den beantragten Fachkursen"]
["8.1.","Sind die beantragten Kurse überbetriebliche Weiterbildungslehrgänge zur beruflichen Anpassungsfortbildung, die dem Erwerb, dem Erhalt oder der Erweiterung von beruflichen Kenntnissen, Fähigkeiten, Fertigkeiten und Kompetenzen dienen?"]
[null,"Nicht gefördert werden:\n           - Inhousekurse. Inhousekurse sind Fortbildungskurse, die in den Räumlichkeiten eines \n             Unternehmens stattfinden.\n           - Einzelbetrieblich ausgerichtete Kurse.      \n           - Kurse, die den Verkauf, den Vertrieb oder die Anwendung von eigenen Produkten \n             schulen."]
[null,"           - Studiengänge jeglicher Art, darunter fallen unter anderem berufsbegleitende \n             Studiengänge, beispielsweise ein Fernstudium, Abendstudium, Wochenendstudium sowie \n             berufsbegleitende Zusatz-, Aufbau- und Weiterbildungsstudiengänge.\n           - Sprachkurse, die berufsbezogenes Deutsch vermitteln.\n             Hinweis: Deutschkurse für den Beruf werden über das ESF-BAMF-Programm des Bundes angeboten \n                und sind deshalb nicht als Fachkurse förderfähig. Anderssprachige berufsbezogene Sprachkurse sind bei \n                Vorliegen der Fördervoraussetzungen grundsätzlich förderfähig."]
[null,"          - Kurse zu persönlichen Arbeitstechniken wie zum Beispiel Zeit-, Selbst- und\n            Stressmanagement.\n          - Kurse, die hauptsächlich der allgemeinen Persönlichkeitsentwicklung, der individuellen \n            Gesundheitsprävention, der Erholung, der Unterhaltung, der privaten Haushaltsführung, \n            der sportlichen und künstlerischen Betätigung oder der sonstigen allgemeinen Lebens-\n            führung dienen.\n         -  Kurse, in denen Inhalte oder Methoden oder die Technologie von L. Ron Hubbard \n            angewandt, gelehrt oder in sonstiger Weise verbreitet werden.\n          - Kurse, in denen menschenverachtendes, extremistisches oder sexistisches Gedankengut \n            gelehrt oder in sonstiger Weise verbreitet wird."]
[]
[null,"            Ja"]
[null,"            Nein",null,"Falls \"Nein\", ändern Sie bitte Ihren Antrag dahingehend, \ndass nur Kurse angegeben sind, welche die o.g. Voraussetzungen erfüllen."]
[]
["8.2.","Bieten Sie ausschließlich Kurse an, die eine Veranstaltungsdauer von mindestens 8 und höchstens 240 Unterrichtseinheiten haben? \nHinweis: \nEine Unterrichtseinheit umfasst i.d.R. nicht weniger als 45 Minuten.\nBei Fachkursen, die als Blended Learning angeboten werden, gelten als Unterrichtseinheiten ausschließlich die Präsenzzeiten vor Ort. "]
[]
[null,"            Ja"]
[null,"            Nein",null,"Falls \"Nein\", ändern Sie bitte Ihren Antrag dahingehend, \ndass nur Kurse angegeben sind, welche die o.g. Voraussetzung erfüllen."]
[]
["8.3.","Sind Blended-Learning-Kurse im Antrag enthalten? "]
[null,"            Nein"]
[null,"            Ja"]
[null,null,"falls ja, bitte geben Sie die laufende Nummer in der Anlage 1 an:"]
[]
[]
["8.4.","Ist der jeweilige Kurs einzeln buchbar?\nHinweis: Ein modularer Kursaufbau ist zulässig, wobei grundsätzlich jedes Modul einzeln buchbar sein muss und in der Rechnung einzeln ausgewiesen."]
[]
[null,"            Ja"]
[null,"            Nein",null,"Falls \"Nein\", ändern Sie bitte Ihren Antrag dahingehend, \ndass nur Kurse angegeben sind, die einzeln buchbar sind."]
[]
["8.5.","Ist der jeweilige Fachkurs innerhalb eines Zeitraums von zwölf Monaten abgeschlossen?"]
[]
[null,"            Ja"]
[null,"            Nein",null,"Falls \"Nein\", ändern Sie bitte Ihren Antrag dahingehend, dass nur Kurse angegeben sind, die innerhalb eines Zeitraums von zwölf Monaten abgeschlossen sind."]
[]
["9.","Finanzierung der Fachkurse"]
["9.1.","voraussichtliche Anzahl der Fachkursteilnehmer/innen:\nBitte füllen Sie hierzu die Anlage 1 aus. "]
[]
[null,"Der Wert wird automatisch aus der ausgefüllten Anlage 1 übernommen.",null,null,null,null,{"$f":"'Anlage 1'!G514+'Anlage 1'!H514","v":0}]
[null,null,null,null,null,null,"männlich","weiblich"]
[null,"Bitte geben Sie hier die Anzahl der Kursteilnehmer/innen aufgeschlüsselt nach dem Geschlecht an (geschätzt):"]
[]
["9.2.","Finanzierungsübersicht über die mit diesem Antrag beantragten Fachkurse:"]
[null,"Die Beträge werden automatisch aus der ausgefüllten Anlage übernommen."]
[]
[null,null,"Zuschuss",null,null,null,{"$f":"'Anlage 1'!N514","v":0}]
[null,null,"davon ESF-Mittel",null,null,null,{"$f":"'Anlage 1'!N515","v":0}]
[null,null,"davon Landesmittel des Ministeriums für Wirtschaft, Arbeit und Wohnungsbau",null,null,null,{"$f":"'Anlage 1'!N516","v":0}]
[null," +   ","private Kofinanzierung (i.d.R.)",null,null,null,{"$f":"'Anlage 1'!N517","v":0}]
[]
[null," =  ","Gesamtausgaben",null,null,null,{"$f":"'Anlage 1'!N518","v":0}]
[]
[null,"Bitte beachten Sie, dass \n- die nicht über den Zuschuss gedeckten Teilnahmegebühren von den Teilnehmenden bzw. den \n  entsendenden Unternehmen/Einrichtungen oder sonstigen Dritten zu finanzieren sind;\n- ein Zuschuss unter 10.000 € grundsätzlich nicht bewilligt wird;\n- pro Weiterbildungsträger und Jahr (12 Monate) ein maximaler Zuschuss von 300.000 € \n  beantragt und abgerechnet werden kann. "]
[]
["9.3.","Überschneidet sich der in Anlage 1 beantragte Zeitraum mit anderen Bewilligungen bzw. Anträgen für die Fachkursförderung?"]
[null,"Nein"]
[null,"Ja, dann stellen Sie für den sich überschneidenden Zeitraum einen Änderungsantrag mit dem entsprechenden Formular. Dieses finden Sie unter www.esf-bw.de."]
[]
["10.","Monitoring: Angaben zu den Teilnehmer-Stammblattdaten sowie Output- und  Ergebnisindikatoren\n"]
[]
[null,"Bitte beachten Sie, dass im Falle einer Bewilligung umfangreiche Pflichten auf Sie zu kommen, u.a. zur Erhebung von Daten über die Fachkursteilnehmer/innen. Des Weiteren sind Sie verpflichtet, an Monitoring- und Evaluationsmaßnahmen teilzunehmen sowie bei Prüfungen mitzuwirken. Die Erfüllung dieser Pflichten wird Ihnen nicht vergütet, die hierfür anfallenden Kosten dürfen auch nicht in irgendeiner Weise an die Fachkursteilnehmer/innen weitergegeben werden."]
[]
["10.1.","Teilnehmer/innen mit Stammblattdaten\n"]
[null,"Von allen Fachkursteilnehmer/innen sind umfangreiche personenbezogene Stammdaten zu erheben und elektronisch über das ZuMa-System zu erfassen und zu übermitteln. \nFür jede/n Fachkursteilnehmer/in ist während des Bewilligungszeitraumes (pro Bewilligung) einmal ein Stammblatt zu erfassen, das in der Regel mehrfach zu aktualisieren ist. Dies gilt auch, wenn Teilnehmer/innen an mehreren Fachkursen innerhalb eines Bewilligungszeitraumes teilnehmen. Es bleibt bei einem einzigen Stammblatt pro Teilnehmer/in.\nEs wird ausdrücklich begrüßt, wenn Teilnehmer/innen an mehreren Fachkursen innerhalb eines Bewilligungszeitraumes teilnehmen. "]
[null,"Hierfür finden Sie \n• den Teilnahmefragebogen\n• die Erläuterungen zur Datenerhebung\n• die Kontaktdaten-Tabelle sowie\n• weitere Unterlagen \nunter folgendem Link: \n"]
[null,"http://www.esf-bw.de/esf/foerderung-beantragen-und-umsetzen/foerderprogramme-des-foerderbereichs-wirtschaft/"]
[null,"\nDie Upload-Tabelle steht über das ZuMa-System der L-Bank zum Download bereit. Die Stammdaten der Teilnehmenden sind in der Upload-Tabelle zu erfassen und regelmäßig über ZuMa an die L-Bank zu übermitteln."]
[]
["*) 10.2.","Outputindikator: \"Erwerbstätige, auch Selbstständige\""]
[null,"Von allen Fachkursteilnehmer/innen, für die ein Stammblatt angelegt ist, zählen lediglich diejenigen, die erwerbstätig bzw. selbstständig sind, auch zum Output.\nAls \"Erwerbstätige, auch Selbstständige\" im Sinne der ESF-Förderung gelten Personen, die einer bezahlten Tätigkeit nachgehen, also alle abhängig Beschäftigten (Arbeiter/-innen, Angestellte, betriebliche Auszubildende), unabhängig davon, ob sie sozialversicherungspflichtig oder geringfügig beschäftigt sind, und die nicht zeitgleich arbeitslos gemeldet sind sowie alle Selbstständigen und mithelfenden Familienangehörigen. Nur \"Erwerbstätige, auch Selbstständige\", für die ein vollständiges Stammdatenblatt vorliegt, zählen in den Output. \n\nDer Outputindikator wird im Rahmen des Monitoring über die Angaben im Stammblatt zum Erwerbsstatus ermittelt. Eine zusätzliche Auswertung durch Sie ist nicht vorzunehmen."]
[]
[null,"Beispiel für die Berechnung der Outputindikatoren:\n\nFörderfähige Teilnehmer/innen nach Nr. 9.1:\nNach Nr. 9.1 haben Sie beispielsweise voraussichtlich 400 förderfähige Teilnehmer/innen.\nDavon belegen 100 Teilnehmer/innen zwei oder mehr Kurse (Mehrfachteilnahmen).\n\nTeilnehmer/innen mit Stammblattdaten:\nDa pro Teilnehmer/innen nur ein einziges Stammblatt anzulegen ist (Mehrfachteilnahmen sind herauszurechnen), haben Sie 300 Teilnehmer/innen, für die ein Stammblatt anzulegen und über ifa3 zu übermitteln ist.\n\nAnzahl der Teilnehmer/innen, die in den Output zählen:\nIn den Output zählen nur erwerbstätige Teilnehmer/innen. \nIm Beispiel unterstellen wir, dass von allen über Stammblätter erfassten Teilnehmer/innen 95% den Status \"erwerbstätig\" aufweisen.\nDer Output liegt in diesem Beispiel somit bei 285 Teilnehmer/innen."]
[]
[]
[null,"Berechnung des Outputindikators: Wie viele in den Output zählende \"Erwerbstätige, auch Selbstständige\" werden voraussichtlich an den geplanten Fachkursen teilnehmen?"]
[null,"Anzahl der förderfähigen Fachkursteilnehmenden nach Nr. 9.1.\n(der Wert wird automatisch von Nr. 9.1. übernommen)",null,null,null,null,{"$f":"G123","v":0}]
[]
[null,"geschätzte Anzahl an Teilnehmer/innen, die zwei oder mehr Fachkurse belegen:"]
[]
[null,"Anzahl Teilnehmender ohne Mehrfachteilnahmen = Teilnehmer/innen mit Stammblattdaten \n(berechnet sich aus den oben gemachten Angaben):",null,null,null,null,{"$f":"IF(G162=0,G160,G160-G162)","v":0}]
[]
[null,null,null,null,null,null,"männlich","weiblich"]
["*)","Output: geschätzte Anzahl der Kursteilnehmer/innen, die den Status \"erwerbstätig\" aufweisen, \naufgeschlüsselt nach dem Geschlecht:"]
[]
[null,null,null,null,null,null,"Soll-Wert"]
[null,"Output: Summe geschätzte Anzahl der Kursteilnehmer/innen, die den Status \"erwerbstätig\" aufweisen (berechnet sich aus den oben gemachten Angaben):",null,null,null,null,{"$f":"G167+H167","v":0}]
[]
["*) 10.3.","Ergebnisindikator: \"Teilnehmer/-innen, die nach ihrer Teilnahme eine Qualifizierung erlangen.\""]
[null,"Der Ergebnisindikator wird im Rahmen des Monitoring über die Angaben in der Upload-Tabelle ermittelt. \nHierfür ist von Ihnen für jede/n Fachkursteilnehmer/in zum Zeitpunkt des Austritts aus der Maßnahme, also nach Kursende (bei mehreren Kursen nach Ende der letzten Kursteilnahme) im Stammblatt anzugeben, ob diese/r eine Qualifizierung (Lernergebnis) erzielt hat. Es muss keine Prüfung stattfinden, um ein Lernergebnis zu bescheinigen.\n\nErlangen einer Qualifizierung:\nEin/e Teilnehmer/in erlangt eine Qualifizierung, wenn ein Lernergebnis erzielt wurde. \nFür jede/n Teilnehmer/in, die/der eine Qualifizierung erlangt, ist zusätzlich ein Zertifikat im Sinne einer qualifizierten Teilnahmebescheinigung auszustellen, um mindestens das formale Ergebnis der Qualifizierung zu bescheinigen. Das bedeutet, dass mindestens ersichtlich sein müssen: Dauer des Fachkurses, Gegenstand (Titel) des Fachkurses und dass die / der Teilnehmer/ in alle Maßnahmebestandteile (Inhalte) des Fachkurses absolviert hat. Die qualifizierte Teilnahmebescheinigung bzw. eine Kopie davon muss auf Anforderung vorgelegt werden können.\n\nDer lt. operationellem Programm für den ESF anzustrebende Zielwert des Ergebnisindikators liegt bei 98%."]
[]
["11.","Querschnittsziele im ESF"]
[]
[null,"Im ESF werden die Themen Gleichstellung von Frauen und Männern, Chancengleichheit und Nichtdiskriminierung sowie ökologische Nachhaltigkeit als Querschnittsziele verfolgt. \nVor diesem Hintergrund sollen sich die Weiterbildungsveranstalter bei der didaktischen und organisatorischen Ausgestaltung von Fachkursen auch an den spezifischen Bedürfnissen von älteren Beschäftigten, Erwerbstätigen mit Migrationshintergrund sowie An- und Ungelernten orientieren.\n\nUmfangreiche Unterlagen zu den Querschnittszielen finden Sie in der Online-Materialsammlung der Agentur für Querschnittszielen im ESF auf der Webseite:\n"]
[null,"www.esf-querschnittsziele.de"]
[]
["11.1.","Gleichstellung von Frauen und Männern"]
[null,"Das Querschnittsziel \"Gleichstellung von Frauen und Männern\" zielt darauf ab, einen\nBeitrag zur gleichen wirtschaftlichen Unabhängigkeit von Frauen und Männern zu\nleisten. In diesem Zusammenhang sollen sich Frauen und Männer in gleichem Maß weiterqualifizieren können. \nDies beinhaltet auch, eine gute Vereinbarkeit von Weiterbildung und Familie anzustreben. \nBeispiele für Instrumente und Methoden finden Sie in der Online-Materialsammlung der Agentur für Gleichstellung im ESF auf der Webseite www.esf-gleichstellung.de.\n\n"]
[]
[null,"Verfolgen Sie mit Kursen hinsichtlich der Gleichstellung von Frauen und Männern eines der beiden Ziele? (Mehrfachnennungen möglich)\n"]
[]
["*)","1.)","Erhöhung der dauerhaften Beteiligung von Frauen am Erwerbsleben\nDie Angabe im Feld generiert sich automatisch entsprechend der Angabe unter 9.1. (Anzahl der weiblichen Kursteilnehmerinnen).",null,null,null,null,null,{"$f":"IF(H125>0,\"ja\",\"nein\")","v":"nein"}]
[]
["*)","2.)","Tragen Kurse zur Verbesserung des beruflichen Fortkommens von Frauen bei?\n",null,null,null,null,null,"     ja","nein"]
[]
["11.2.","Chancengleichheit und Nichtdiskriminierung"]
[null,"In der Fachkursförderung der vorhergehenden Förderperiode waren Menschen mit Migrationshintergrund unterrepräsentiert im Vergleich zu ihrem Anteil an den Erwerbstätigen. Ein höherer Anteil von Menschen mit Migrationshintergrund, die an Fachkursen teilnehmen, ist erwünscht."]
[null,"Bitte schätzen Sie, wie hoch der Anteil an Kursteilnehmer/innen mit Migrationshintergrund sein wird:"]
["*)","Anteil Kursteilnehmer/innen mit Migrationshintergrund (Angabe in %):"]
[]
[null,"Insbesondere wenn der Anteil an Kursteilnehmer/innen mit Migrationshintergrund 25% nicht erreicht, empfehlen wir, durch geeignete Maßnahmen, bspw. Didaktik oder Marketing, den Anteil zu steigern."]
[null,"Sind entsprechende Maßnahmen geplant, um den Anteil an Teilnehmer/innen mit Migrationshintergrund zu erhöhen?"]
["*)","       Ja","wenn ja, welche:"]
[null,"       Nein"]
[]
["11.3.","Ökologische Nachhaltigkeit"]
[null,"Enthält der Antrag Kurse zu Themen, die zum Ziel der Nachhaltigkeit im Sinne des Schutzes der Umwelt und der Verbesserung ihrer Qualität beitragen (z.B. CO2-Reduzierung)?"]
["*)","       Ja ","Wie viele Teilnehmer/innen werden schätzungsweise über Kurse, die zu dem Ziel der ökologischen Nachhaltigkeit beitragen, erreicht (Angabe in %)?"]
[null,"       Nein"]
[null,"Sollte der Antrag Kurse enthalten, die die Elektromobilität betreffen, stellen Sie für diese Kurse bitte einen gesonderten Antrag über das Antragsformular der Schwerpunktlinie Elektromobilität. Weitere Informationen hierzu finden Sie im entsprechenden Merkblatt und unter www.esf-bw.de."]
[]
["12.","Wir bestätigen, dass …"]
["►","wir von dem Merkblatt zum Förderprogramm Kenntnis genommen haben und die Bestimmungen beachten werden."]
[]
["►","wir damit einverstanden sind, dass die für die Antrags- und Zuschussbearbeitung notwendigen Daten edv-technisch erfasst und verarbeitet werden."]
[]
[null,"Ausgaben, Zuschuss und Finanzierung"]
[]
["►","uns bekannt ist, dass weitere Vergünstigungen wie zum Beispiel Preisnachlässe für Gruppenanmeldungen, Frühbucher-, Mitglieder- und Treuerabatte des Weiterbildungsträgers die zuschussfähige Teilnahmegebühr verringern."]
[]
["►","in der Rechnung die volle Teilnahmegebühr, alle weiteren Vergünstigungen sowie der Zuschuss jeweils getrennt ausgewiesen werden. Der Zuschuss muss von uns in voller Höhe an die entsendenden Unternehmen bzw. die Teilnehmenden weitergegeben werden. Dieses wird von uns in der Rechnung durch Absetzung des Zuschusses von der Teilnahmegebühr erfolgen.\nUns ist bekannt, dass es grundsätzlich unzulässig ist, die volle Teilnahmegebühr von den Teilnehmenden zu erheben und den Zuschuss zu einem späteren Zeitpunkt zu erstatten."]
[]
["►","uns bekannt ist, dass der Zuschuss vom Zuwendungsempfänger vorfinanziert werden muss und eventuell anfallende Finanzierungskosten nicht erstattet werden."]
[]
["►","wir den Teilnehmer/innen ab 50 Jahren grundsätzlich den erhöhten Zuschuss von 50% einräumen. "]
[]
["►","uns bekannt ist, dass im Falle einer Zuschussgewährung ein separates Buchführungssystem oder ein geeigneter Buchführungscode zu verwenden ist."]
[]
["►","uns bekannt ist, dass eine weitere Förderung der Fachkurse beim Veranstalter oder der bezuschussten Kursgebühren aus Mitteln der Europäischen Union ausgeschlossen ist."]
[]
["►","der in der Anlage 1 in der Spalte \"Teilnahmegebühr pro Einzelkurs\" ausgewiesene Betrag ohne Mehrwertsteuer und ohne Übernachtungskosten angegeben ist. "]
[]
["►","uns bekannt ist, dass Bewirtungen für Teilnehmende nur bezuschusst werden, soweit sie in den erhobenen Teilnahmegebühren enthalten sind."]
[]
[null,"Evaluation und Monitoring"]
["►","uns bekannt ist, dass im Falle einer Zuschussgewährung umfangreiche Pflichten u.a. zur Erhebung von Daten über Fachkursteilnehmer/innen auf uns zukommen."]
[]
["►","uns bekannt ist, dass wir im Falle einer Zuschussgewährung im Rahmen der Datenerfassung verpflichtet sind, alle Fachkursteilnehmer/innen über die Notwendigkeit, die Rechtmäßigkeit und den Umfang der Datenerhebung zu informieren sowie diese über deren Monitoring- und Evaluationspflichten aufzuklären."]
[]
["►","uns bekannt ist, dass wir verpflichtet sind, an Monitoring- und Evaluierungsmaßnahmen teilzunehmen sowie bei Prüfungen mitzuwirken und die erforderlichen Auskünfte zu erteilen."]
[]
[null,"Publizitätspflichten"]
["►","wir im Falle einer Zuschussgewährung einverstanden sind, dass u.a. der Name des Zuwendungsempfängers und Postleitzahl, die Bezeichnung des Vorhabens (Fachkurse - Kurzbeschreibung), der Durchführungszeitraum und die förderfähigen Ausgaben in einer \"Liste der Vorhaben\" aufgenommen und veröffentlicht werden."]
[]
["►","uns bekannt ist, dass wir verpflichtet sind, alle an der Maßnahme Beteiligten über die Förderung aus Mitteln des Europäischen Sozialfonds zu informieren. Wir werden grundsätzlich bei allen Veröffentlichungen, Veranstaltungen sowie auf den Teilnahmerechnungen und/oder Teilnahmebescheinigungen darauf hinweisen, dass der Zuschuss vom Ministerium für Wirtschaft, Arbeit und Wohnungsbau Baden-Württemberg aus Mitteln der Europäischen Union getragen wird. "]
[]
["►","wir uns verpflichten, eine Vorlage für das ESF-Plakat, die wir unter www.esf-bw.de finden, mit Informationen zu unseren Fachkursen zu ergänzen und gut sichtbar bspw. in den Kursräumen oder im Eingangsbereich während der Durchführung unserer Fachkurse auszuhängen."]
[]
["►","uns bekannt ist, dass wir, sofern wir eine Webseite betreiben, verpflichtet sind, dort eine kurze Beschreibung einzustellen, aus der die Ziele und Ergebnisse der Fachkursförderung sowie die finanzielle Unterstützung durch die EU hervorgehen."]
[]
["►","uns bekannt ist, dass die Erfüllung der Publizitätspflichten in geeigneter Weise zu dokumentieren ist (beispielsweise Belegexemplare, Screenshot, Fotodokumentation oder ähnliches)."]
[]
[null,"Aufbewahrungspflicht"]
["►","uns bekannt ist, dass alle Belege, Verträge und sonstige mit dem Zuschuss zusammenhängenden Unterlagen mindestens bis 31.12.2031 aufbewahrt werden müssen. Uns ist zudem bekannt, dass wir sie jederzeit vollständig zu Prüfungen bereitstellen können müssen und jede Änderung des Aufbewahrungsortes der L-Bank mitzuteilen haben. \nDiese Pflicht bleibt bei Betriebsänderungen unverändert bestehen (z.B. Einschränkung, Stilllegung, Verlegung des ganzen Betriebs oder wesentlicher Betriebsteile). Die Unterlagen müssen bei Betriebsänderungen ebenfalls bis 31.12.2031 aufbewahrt werden und jederzeit vollständig zur Prüfung bereitgestellt werden können. Jede Änderung des Aufbewahrungsortes ist auch bei Betriebsänderungen der L-Bank mitzuteilen. \nFalls sich die Aufbewahrungsfrist ändert, erfolgt eine entsprechende Information."]
[]
[null,"Wir bestätigen, dass die in diesem Formular einschließlich aller Anlagen gemachten Angaben vollständig und richtig sind."]
[]
[]
[null,"Ort, Datum",null,null,null,"Stempel, rechtsverbindliche Unterschrift des Antragstellenden"]
[null,"Anlagen:"]
[null,"Aufstellung der geplanten Fachkurse (siehe Anlage 1)"]
[null,"falls bereits vorhanden: Kursprogramm des Veranstalters, aus der Kursdauer, -termin, -thema, \n-dozent, -inhalt und -ort ersichtlich sind, ansonsten aussagekräftige Kursbeschreibung"]
[null,"weitere Nachweise (falls erforderlich): Verbandssatzung, Handelsregisterauszug, Vereinsregisterauszug"]
[]
["Im Falle einer Bewilligung erhalten Sie zusammen mit dem Bewilligungsbescheid Informationen über den Zugang  zum ZuMa-System."]
[]
[null,null,null,null,null,null,null,null,null,null,null,"02 Fischerei und Aquakultur"]
[null,null,null,null,null,null,null,null,null,null,null,"03 Herstellung von Nahrungs- und Futtermitteln, Getränkeherstellung"]
[null,null,null,null,null,null,null,null,null,null,null,"04 Herstellung von Textilien und Bekleidung"]
[null,null,null,null,null,null,null,null,null,null,null,"05 Fahrzeugbau"]
[null,null,null,null,null,null,null,null,null,null,null,"06 Herstellung von Datenverarbeitungsgeräten, elektronischen und optischen Erzeugnissen"]
[null,null,null,null,null,null,null,null,null,null,null,"07 Sonstiges nicht spezifiziertes verarbeitendes Gewerbe"]
[null,null,null,null,null,null,null,null,null,null,null,"08 Baugewerbe/Bau"]
[null,null,null,null,null,null,null,null,null,null,null,"09 Bergbau und Gewinnung von Steinen und Erden (einschließlich zwecks Energieerzeugung betriebener Bergbau)"]
[null,null,null,null,null,null,null,null,null,null,null,"10 Energieversorgung"]
[null,null,null,null,null,null,null,null,null,null,null,"11 Wasserversorgung, Abwasser- und Abfallentsorgung und Beseitigung von Umweltverschmutzungen"]
[null,null,null,null,null,null,null,null,null,null,null,"12 Verkehr und Lagerei"]
[null,null,null,null,null,null,null,null,null,null,null,"13 Informations- und Kommunikation, einschließlich Telekommunikation, Informationsdienstleistungen, Erbringung von Dienstleistungen der Informationstechnologie"]
[null,null,null,null,null,null,null,null,null,null,null,"14 Handel"]
[null,null,null,null,null,null,null,null,null,null,null,"15 Gastgewerbe/Beherbergung und Gastronomie"]
[null,null,null,null,null,null,null,null,null,null,null,"16 Erbringung von Finanz- und Versicherungsdienstleistungen"]
[null,null,null,null,null,null,null,null,null,null,null,"17 Grundstücks- und Wohnungswesen, Vermietung und wirtschaftliche Tätigkeiten"]
[null,null,null,null,null,null,null,null,null,null,null,"18 Öffentliche Verwaltung"]
[null,null,null,null,null,null,null,null,null,null,null,"19 Erziehung und Unterricht"]
[null,null,null,null,null,null,null,null,null,null,null,"20 Gesundheits- und Sozialwesen"]
[null,null,null,null,null,null,null,null,null,null,null,"21 Sozialwesen, öffentliche und persönliche Dienstleistungen"]
[null,null,null,null,null,null,null,null,null,null,null,"22 Dienstleistungen im Zusammenhang mit Umwelt und Klimawandel"]
[null,null,null,null,null,null,null,null,null,null,null,"23 Kunst, Unterhaltung, Kreativwirtschaft und Erholung"]
[null,null,null,null,null,null,null,null,null,null,null,"24 Sonstige nicht spezifizierte Dienstleistungen"]
[null,null,null,null,null,null,null,null,null,null,null,"Bitte wählen Sie mithilfe des Dropdown die zutreffende Branche aus! "]

{"sheet":"Anlage 1","index":1,"n_rows":520,"n_cols":14,"rows_kept":520,"cut":false,"hidden":false,"merged":[[515,8,515,10],[1,7,1,8],[5,1,5,13],[1,10,1,11],[7,11,7,12],[7,13,8,13],[7,1,8,1],[7,4,8,4],[7,5,8,5],[7,3,8,3],[2,5,2,8],[519,3,519,13],[520,3,520,13],[518,3,518,13],[2,9,2,12],[3,1,3,11],[516,9,516,10],[7,6,7,7],[7,9,7,10],[517,9,517,10],[513,9,513,10],[512,4,512,5],[515,6,515,7],[514,6,514,7],[7,2,8,2],[513,3,515,5],[514,8,514,10]]}
[]
[null,"Anlage 1: Aufstellung der geplanten Fachkurse in der Zeit vom",null,null,null,null,"*)",null,null,"bis   *)"]
[null,null,null,null,null,"Datum muss den ersten Kurstag umfassen.",null,null,null,"Datum des voraussichtlich letzten Kurstags."]
[null,"Bitte fassen Sie Anträge, die zwischen dem 01.09 und 31.08 des Folgejahres beginnen, möglichst in einem Antrag  zusammen."]
[]
[null,"Bei allen Angaben muss es sich um realistische Schätzungen handeln, die mit hoher Wahrscheinlichkeit eintreffen werden.\nDer Austausch von Teilnehmer/innen innerhalb förderfähiger Kurse ist möglich.  "]
[]
[null,"Nr. ","Kursnummer laut Kursprogramm (falls vorhanden)","Kursbezeichnung (hieraus muss der thematische Schwerpunkt eindeutig hervorgehen) ","Anzahl der geplanten Kurse","Dauer des Einzel-kurses in Unter-richts-einheiten","Voraussichtliche \nAnzahl förderfähiger Teilnehmer/innen\ninsgesamt",null,"Teilnahme- gebühr pro Einzelkurs in Euro","Einzelzuschuss \npro Teilnehmer/-in",null,"Gesamtzuschuss für alle Teilnehmer/innen ",null,"Zuschuss gesamt"]
[null,null,null,null,null,null,"unter 50 J.","ab 50 J.",1,"unter 50 J.\n30 %","ab 50 J.\n50 %","unter 50 J.","ab 50 J."]
[null,1,null,null,null,null,null,null,null,{"$f":"IF(G10>0,I10*0.3,0)","v":0},{"$f":"IF(H10>0,I10*0.5,0)","v":0},{"$f":"G10*I10*0.3","v":0},{"$f":"H10*I10*0.5","v":0},{"$f":"L10+M10","v":0}]
[null,2,null,null,null,null,null,null,null,{"$f":"IF(G11>0,I11*0.3,0)","v":0},{"$f":"IF(H11>0,I11*0.5,0)","v":0},{"$f":"G11*I11*0.3","v":0},{"$f":"H11*I11*0.5","v":0},{"$f":"L11+M11","v":0}]
[null,3,null,null,null,null,null,null,null,0,0,0,0,0]
[null,4,null,null,null,null,null,null,null,0,0,0,0,0]
[null,5,null,null,null,null,null,null,null,0,0,0,0,0]
[null,6,null,null,null,null,null,null,null,0,0,0,0,0]
[null,7,null,null,null,null,null,null,null,0,0,0,0,0]
[null,8,null,null,null,null,null,null,null,0,0,0,0,0]
[null,9,null,null,null,null,null,null,null,0,0,0,0,0]
[null,10,null,null,null,null,null,null,null,0,0,0,0,0]
[null,11,null,null,null,null,null,null,null,0,0,0,0,0]
[null,12,null,null,null,null,null,null,null,0,0,0,0,0]
[null,13,null,null,null,null,null,null,null,0,0,0,0,0]
[null,14,null,null,null,null,null,null,null,0,0,0,0,0]
[null,15,null,null,null,null,null,null,null,0,0,0,0,0]
[null,16,null,null,null,null,null,null,null,0,0,0,0,0]
[null,17,null,null,null,null,null,null,null,0,0,0,0,0]
[null,18,null,null,null,null,null,null,null,0,0,0,0,0]
[null,19,null,null,null,null,null,null,null,0,0,0,0,0]
[null,20,null,null,null,null,null,null,null,0,0,0,0,0]
[null,21,null,null,null,null,null,null,null,0,0,0,0,0]
[null,22,null,null,null,null,null,null,null,0,0,0,0,0]
[null,23,null,null,null,null,null,null,null,0,0,0,0,0]
[null,24,null,null,null,null,null,null,null,0,0,0,0,0]
[null,25,null,null,null,null,null,null,null,0,0,0,0,0]
[null,26,null,null,null,null,null,null,null,0,0,0,0,0]
[null,27,null,null,null,null,null,null,null,0,0,0,0,0]
[null,28,null,null,null,null,null,null,null,0,0,0,0,0]
[null,29,null,null,null,null,null,null,null,0,0,0,0,0]
[null,30,null,null,null,null,null,null,null,0,0,0,0,0]
[null,31,null,null,null,null,null,null,null,0,0,0,0,0]
[null,32,null,null,null,null,null,null,null,0,0,0,0,0]
[null,33,null,null,null,null,null,null,null,0,0,0,0,0]
[null,34,null,null,null,null,null,null,null,0,0,0,0,0]
[null,35,null,null,null,null,null,null,null,0,0,0,0,0]
[null,36,null,null,null,null,null,null,null,0,0,0,0,0]
[null,37,null,null,null,null,null,null,null,0,0,0,0,0]
[null,38,null,null,null,null,null,null,null,0,0,0,0,0]
[null,39,null,null,null,null,null,null,null,0,0,0,0,0]
[null,40,null,null,null,null,null,null,null,0,0,0,0,0]
[null,41,null,null,null,null,null,null,null,0,0,0,0,0]
[null,42,null,null,null,null,null,null,null,0,0,0,0,0]
[null,43,null,null,null,null,null,null,null,0,0,0,0,0]
[null,44,null,null,null,null,null,null,null,0,0,0,0,0]
[null,45,null,null,null,null,null,null,null,0,0,0,0,0]
[null,46,null,null,null,null,null,null,null,0,0,0,0,0]
[null,47,null,null,null,null,null,null,null,0,0,0,0,0]
[null,48,null,null,null,null,null,null,null,0,0,0,0,0]
[null,49,null,null,null,null,null,null,null,0,0,0,0,0]
[null,50,null,null,null,null,null,null,null,0,0,0,0,0]
[null,51,null,null,null,null,null,null,null,0,0,0,0,0]
[null,52,null,null,null,null,null,null,null,0,0,0,0,0]
[null,53,null,null,null,null,null,null,null,0,0,0,0,0]
[null,54,null,null,null,null,null,null,null,0,0,0,0,0]
[null,55,null,null,null,null,null,null,null,0,0,0,0,0]
[null,56,null,null,null,null,null,null,null,0,0,0,0,0]
[null,57,null,null,null,null,null,null,null,0,0,0,0,0]
[null,58,null,null,null,null,null,null,null,0,0,0,0,0]
[null,59,null,null,null,null,null,null,null,0,0,0,0,0]
[null,60,null,null,null,null,null,null,null,0,0,0,0,0]
[null,61,null,null,null,null,null,null,null,0,0,0,0,0]
[null,62,null,null,null,null,null,null,null,0,0,0,0,0]
[null,63,null,null,null,null,null,null,null,0,0,0,0,0]
[null,64,null,null,null,null,null,null,null,0,0,0,0,0]
[null,65,null,null,null,null,null,null,null,0,0,0,0,0]
[null,66,null,null,null,null,null,null,null,{"$f":"IF(G75>0,I75*0.3,0)","v":0},{"$f":"IF(H75>0,I75*0.5,0)","v":0},{"$f":"G75*I75*0.3","v":0},{"$f":"H75*I75*0.5","v":0},{"$f":"L75+M75","v":0}]
[null,67,null,null,null,null,null,null,null,0,0,0,0,0]
[null,68,null,null,null,null,null,null,null,0,0,0,0,0]
[null,69,null,null,null,null,null,null,null,0,0,0,0,0]
[null,70,null,null,null,null,null,null,null,0,0,0,0,0]
[null,71,null,null,null,null,null,null,null,0,0,0,0,0]
[null,72,null,null,null,null,null,null,null,0,0,0,0,0]
[null,73,null,null,null,null,null,null,null,0,0,0,0,0]
[null,74,null,null,null,null,null,null,null,0,0,0,0,0]
[null,75,null,null,null,null,null,null,null,0,0,0,0,0]
[null,76,null,null,null,null,null,null,null,0,0,0,0,0]
[null,77,null,null,null,null,null,null,null,0,0,0,0,0]
[null,78,null,null,null,null,null,null,null,0,0,0,0,0]
[null,79,null,null,null,null,null,null,null,0,0,0,0,0]
[null,80,null,null,null,null,null,null,null,0,0,0,0,0]
[null,81,null,null,null,null,null,null,null,0,0,0,0,0]
[null,82,null,null,null,null,null,null,null,0,0,0,0,0]
[null,83,null,null,null,null,null,null,null,0,0,0,0,0]
[null,84,null,null,null,null,null,null,null,0,0,0,0,0]
[null,85,null,null,null,null,null,null,null,0,0,0,0,0]
[null,86,null,null,null,null,null,null,null,0,0,0,0,0]
[null,87,null,null,null,null,null,null,null,0,0,0,0,0]
[null,88,null,null,null,null,null,null,null,0,0,0,0,0]
[null,89,null,null,null,null,null,null,null,0,0,0,0,0]
[null,90,null,null,null,null,null,null,null,0,0,0,0,0]
[null,91,null,null,null,null,null,null,null,0,0,0,0,0]
[null,92,null,null,null,null,null,null,null,0,0,0,0,0]
[null,93,null,null,null,null,null,null,null,0,0,0,0,0]
[null,94,null,null,null,null,null,null,null,0,0,0,0,0]
[null,95,null,null,null,null,null,null,null,0,0,0,0,0]
[null,96,null,null,null,null,null,null,null,0,0,0,0,0]
[null,97,null,null,null,null,null,null,null,0,0,0,0,0]
[null,98,null,null,null,null,null,null,null,0,0,0,0,0]
[null,99,null,null,null,null,null,null,null,0,0,0,0,0]
[null,100,null,null,null,null,null,null,null,0,0,0,0,0]
[null,101,null,null,null,null,null,null,null,0,0,0,0,0]
[null,102,null,null,null,null,null,null,null,0,0,0,0,0]
[null,103,null,null,null,null,null,null,null,0,0,0,0,0]
[null,104,null,null,null,null,null,null,null,0,0,0,0,0]
[null,105,null,null,null,null,null,null,null,0,0,0,0,0]
[null,106,null,null,null,null,null,null,null,0,0,0,0,0]
[null,107,null,null,null,null,null,null,null,0,0,0,0,0]
[null,108,null,null,null,null,null,null,null,0,0,0,0,0]
[null,109,null,null,null,null,null,null,null,0,0,0,0,0]
[null,110,null,null,null,null,null,null,null,0,0,0,0,0]
[null,111,null,null,null,null,null,null,null,0,0,0,0,0]
[null,112,null,null,null,null,null,null,null,0,0,0,0,0]
[null,113,null,null,null,null,null,null,null,0,0,0,0,0]
[null,114,null,null,null,null,null,null,null,0,0,0,0,0]
[null,115,null,null,null,null,null,null,null,0,0,0,0,0]
[null,116,null,null,null,null,null,null,null,0,0,0,0,0]
[null,117,null,null,null,null,null,null,null,0,0,0,0,0]
[null,118,null,null,null,null,null,null,null,0,0,0,0,0]
[null,119,null,null,null,null,null,null,null,0,0,0,0,0]
[null,120,null,null,null,null,null,null,null,0,0,0,0,0]
[null,121,null,null,null,null,null,null,null,0,0,0,0,0]
[null,122,null,null,null,null,null,null,null,0,0,0,0,0]
[null,123,null,null,null,null,null,null,null,0,0,0,0,0]
[null,124,null,null,null,null,null,null,null,0,0,0,0,0]
[null,125,null,null,null,null,null,null,null,0,0,0,0,0]
[null,126,null,null,null,null,null,null,null,0,0,0,0,0]
[null,127,null,null,null,null,null,null,null,0,0,0,0,0]
[null,128,null,null,null,null,null,null,null,0,0,0,0,0]
[null,129,null,null,null,null,null,null,null,0,0,0,0,0]
[null,130,null,null,null,null,null,null,null,{"$f":"IF(G139>0,I139*0.3,0)","v":0},{"$f":"IF(H139>0,I139*0.5,0)","v":0},{"$f":"G139*I139*0.3","v":0},{"$f":"H139*I139*0.5","v":0},{"$f":"L139+M139","v":0}]
[null,131,null,null,null,null,null,null,null,0,0,0,0,0]
[null,132,null,null,null,null,null,null,null,0,0,0,0,0]
[null,133,null,null,null,null,null,null,null,0,0,0,0,0]
[null,134,null,null,null,null,null,null,null,0,0,0,0,0]
[null,135,null,null,null,null,null,null,null,0,0,0,0,0]
[null,136,null,null,null,null,null,null,null,0,0,0,0,0]
[null,137,null,null,null,null,null,null,null,0,0,0,0,0]
[null,138,null,null,null,null,null,null,null,0,0,0,0,0]
[null,139,null,null,null,null,null,null,null,0,0,0,0,0]
[null,140,null,null,null,null,null,null,null,0,0,0,0,0]
[null,141,null,null,null,null,null,null,null,0,0,0,0,0]
[null,142,null,null,null,null,null,null,null,0,0,0,0,0]
[null,143,null,null,null,null,null,null,null,0,0,0,0,0]
[null,144,null,null,null,null,null,null,null,0,0,0,0,0]
[null,145,null,null,null,null,null,null,null,0,0,0,0,0]
[null,146,null,null,null,null,null,null,null,0,0,0,0,0]
[null,147,null,null,null,null,null,null,null,0,0,0,0,0]
[null,148,null,null,null,null,null,null,null,0,0,0,0,0]
[null,149,null,null,null,null,null,null,null,0,0,0,0,0]
[null,150,null,null,null,null,null,null,null,0,0,0,0,0]
[null,151,null,null,null,null,null,null,null,0,0,0,0,0]
[null,152,null,null,null,null,null,null,null,0,0,0,0,0]
[null,153,null,null,null,null,null,null,null,0,0,0,0,0]
[null,154,null,null,null,null,null,null,null,0,0,0,0,0]
[null,155,null,null,null,null,null,null,null,0,0,0,0,0]
[null,156,null,null,null,null,null,null,null,0,0,0,0,0]
[null,157,null,null,null,null,null,null,null,0,0,0,0,0]
[null,158,null,null,null,null,null,null,null,0,0,0,0,0]
[null,159,null,null,null,null,null,null,null,0,0,0,0,0]
[null,160,null,null,null,null,null,null,null,0,0,0,0,0]
[null,161,null,null,null,null,null,null,null,0,0,0,0,0]
[null,162,null,null,null,null,null,null,null,0,0,0,0,0]
[null,163,null,null,null,null,null,null,null,0,0,0,0,0]
[null,164,null,null,null,null,null,null,null,0,0,0,0,0]
[null,165,null,null,null,null,null,null,null,0,0,0,0,0]
[null,166,null,null,null,null,null,null,null,0,0,0,0,0]
[null,167,null,null,null,null,null,null,null,0,0,0,0,0]
[null,168,null,null,null,null,null,null,null,0,0,0,0,0]
[null,169,null,null,null,null,null,null,null,0,0,0,0,0]
[null,170,null,null,null,null,null,null,null,0,0,0,0,0]
[null,171,null,null,null,null,null,null,null,0,0,0,0,0]
[null,172,null,null,null,null,null,null,null,0,0,0,0,0]
[null,173,null,null,null,null,null,null,null,0,0,0,0,0]
[null,174,null,null,null,null,null,null,null,0,0,0,0,0]
[null,175,null,null,null,null,null,null,null,0,0,0,0,0]
[null,176,null,null,null,null,null,null,null,0,0,0,0,0]
[null,177,null,null,null,null,null,null,null,0,0,0,0,0]
[null,178,null,null,null,null,null,null,null,0,0,0,0,0]
[null,179,null,null,null,null,null,null,null,0,0,0,0,0]
[null,180,null,null,null,null,null,null,null,0,0,0,0,0]
[null,181,null,null,null,null,null,null,null,0,0,0,0,0]
[null,182,null,null,null,null,null,null,null,0,0,0,0,0]
[null,183,null,null,null,null,null,null,null,0,0,0,0,0]
[null,184,null,null,null,null,null,null,null,0,0,0,0,0]
[null,185,null,null,null,null,null,null,null,0,0,0,0,0]
[null,186,null,null,null,null,null,null,null,0,0,0,0,0]
[null,187,null,null,null,null,null,null,null,0,0,0,0,0]
[null,188,null,null,null,null,null,null,null,0,0,0,0,0]
[null,189,null,null,null,null,null,null,null,0,0,0,0,0]
[null,190,null,null,null,null,null,null,null,0,0,0,0,0]
[null,191,null,null,null,null,null,null,null,0,0,0,0,0]
[null,192,null,null,null,null,null,null,null,0,0,0,0,0]
[null,193,null,null,null,null,null,null,null,0,0,0,0,0]
[null,194,null,null,null,null,null,null,null,{"$f":"IF(G203>0,I203*0.3,0)","v":0},{"$f":"IF(H203>0,I203*0.5,0)","v":0},{"$f":"G203*I203*0.3","v":0},{"$f":"H203*I203*0.5","v":0},{"$f":"L203+M203","v":0}]
[null,195,null,null,null,null,null,null,null,0,0,0,0,0]
[null,196,null,null,null,null,null,null,null,0,0,0,0,0]
[null,197,null,null,null,null,null,null,null,0,0,0,0,0]
[null,198,null,null,null,null,null,null,null,0,0,0,0,0]
[null,199,null,null,null,null,null,null,null,0,0,0,0,0]
[null,200,null,null,null,null,null,null,null,0,0,0,0,0]
[null,201,null,null,null,null,null,null,null,0,0,0,0,0]
[null,202,null,null,null,null,null,null,null,0,0,0,0,0]
[null,203,null,null,null,null,null,null,null,0,0,0,0,0]
[null,204,null,null,null,null,null,null,null,0,0,0,0,0]
[null,205,null,null,null,null,null,null,null,0,0,0,0,0]
[null,206,null,null,null,null,null,null,null,0,0,0,0,0]
[null,207,null,null,null,null,null,null,null,0,0,0,0,0]
[null,208,null,null,null,null,null,null,null,0,0,0,0,0]
[null,209,null,null,null,null,null,null,null,0,0,0,0,0]
[null,210,null,null,null,null,null,null,null,0,0,0,0,0]
[null,211,null,null,null,null,null,null,null,0,0,0,0,0]
[null,212,null,null,null,null,null,null,null,0,0,0,0,0]
[null,213,null,null,null,null,null,null,null,0,0,0,0,0]
[null,214,null,null,null,null,null,null,null,0,0,0,0,0]
[null,215,null,null,null,null,null,null,null,0,0,0,0,0]
[null,216,null,null,null,null,null,null,null,0,0,0,0,0]
[null,217,null,null,null,null,null,null,null,0,0,0,0,0]
[null,218,null,null,null,null,null,null,null,0,0,0,0,0]
[null,219,null,null,null,null,null,null,null,0,0,0,0,0]
[null,220,null,null,null,null,null,null,null,0,0,0,0,0]
[null,221,null,null,null,null,null,null,null,0,0,0,0,0]
[null,222,null,null,null,null,null,null,null,0,0,0,0,0]
[null,223,null,null,null,null,null,null,null,0,0,0,0,0]
[null,224,null,null,null,null,null,null,null,0,0,0,0,0]
[null,225,null,null,null,null,null,null,null,0,0,0,0,0]
[null,226,null,null,null,null,null,null,null,0,0,0,0,0]
[null,227,null,null,null,null,null,null,null,0,0,0,0,0]
[null,228,null,null,null,null,null,null,null,0,0,0,0,0]
[null,229,null,null,null,null,null,null,null,0,0,0,0,0]
[null,230,null,null,null,null,null,null,null,0,0,0,0,0]
[null,231,null,null,null,null,null,null,null,0,0,0,0,0]
[null,232,null,null,null,null,null,null,null,0,0,0,0,0]
[null,233,null,null,null,null,null,null,null,0,0,0,0,0]
[null,234,null,null,null,null,null,null,null,0,0,0,0,0]
[null,235,null,null,null,null,null,null,null,0,0,0,0,0]
[null,236,null,null,null,null,null,null,null,0,0,0,0,0]
[null,237,null,null,null,null,null,null,null,0,0,0,0,0]
[null,238,null,null,null,null,null,null,null,0,0,0,0,0]
[null,239,null,null,null,null,null,null,null,0,0,0,0,0]
[null,240,null,null,null,null,null,null,null,0,0,0,0,0]
[null,241,null,null,null,null,null,null,null,0,0,0,0,0]
[null,242,null,null,null,null,null,null,null,0,0,0,0,0]
[null,243,null,null,null,null,null,null,null,0,0,0,0,0]
[null,244,null,null,null,null,null,null,null,0,0,0,0,0]
[null,245,null,null,null,null,null,null,null,0,0,0,0,0]
[null,246,null,null,null,null,null,null,null,0,0,0,0,0]
[null,247,null,null,null,null,null,null,null,0,0,0,0,0]
[null,248,null,null,null,null,null,null,null,0,0,0,0,0]
[null,249,null,null,null,null,null,null,null,0,0,0,0,0]
[null,250,null,null,null,null,null,null,null,0,0,0,0,0]
[null,251,null,null,null,null,null,null,null,0,0,0,0,0]
[null,252,null,null,null,null,null,null,null,0,0,0,0,0]
[null,253,null,null,null,null,null,null,null,0,0,0,0,0]
[null,254,null,null,null,null,null,null,null,0,0,0,0,0]
[null,255,null,null,null,null,null,null,null,0,0,0,0,0]
[null,256,null,null,null,null,null,null,null,0,0,0,0,0]
[null,257,null,null,null,null,null,null,null,0,0,0,0,0]
[null,258,null,null,null,null,null,null,null,{"$f":"IF(G267>0,I267*0.3,0)","v":0},{"$f":"IF(H267>0,I267*0.5,0)","v":0},{"$f":"G267*I267*0.3","v":0},{"$f":"H267*I267*0.5","v":0},{"$f":"L267+M267","v":0}]
[null,259,null,null,null,null,null,null,null,0,0,0,0,0]
[null,260,null,null,null,null,null,null,null,0,0,0,0,0]
[null,261,null,null,null,null,null,null,null,0,0,0,0,0]
[null,262,null,null,null,null,null,null,null,0,0,0,0,0]
[null,263,null,null,null,null,null,null,null,0,0,0,0,0]
[null,264,null,null,null,null,null,null,null,0,0,0,0,0]
[null,265,null,null,null,null,null,null,null,0,0,0,0,0]
[null,266,null,null,null,null,null,null,null,0,0,0,0,0]
[null,267,null,null,null,null,null,null,null,0,0,0,0,0]
[null,268,null,null,null,null,null,null,null,0,0,0,0,0]
[null,269,null,null,null,null,null,null,null,0,0,0,0,0]
[null,270,null,null,null,null,null,null,null,0,0,0,0,0]
[null,271,null,null,null,null,null,null,null,0,0,0,0,0]
[null,272,null,null,null,null,null,null,null,0,0,0,0,0]
[null,273,null,null,null,null,null,null,null,0,0,0,0,0]
[null,274,null,null,null,null,null,null,null,0,0,0,0,0]
[null,275,null,null,null,null,null,null,null,0,0,0,0,0]
[null,276,null,null,null,null,null,null,null,0,0,0,0,0]
[null,277,null,null,null,null,null,null,null,0,0,0,0,0]
[null,278,null,null,null,null,null,null,null,0,0,0,0,0]
[null,279,null,null,null,null,null,null,null,0,0,0,0,0]
[null,280,null,null,null,null,null,null,null,0,0,0,0,0]
[null,281,null,null,null,null,null,null,null,0,0,0,0,0]
[null,282,null,null,null,null,null,null,null,0,0,0,0,0]
[null,283,null,null,null,null,null,null,null,0,0,0,0,0]
[null,284,null,null,null,null,null,null,null,0,0,0,0,0]
[null,285,null,null,null,null,null,null,null,0,0,0,0,0]
[null,286,null,null,null,null,null,null,null,0,0,0,0,0]
[null,287,null,null,null,null,null,null,null,0,0,0,0,0]
[null,288,null,null,null,null,null,null,null,0,0,0,0,0]
[null,289,null,null,null,null,null,null,null,0,0,0,0,0]
[null,290,null,null,null,null,null,null,null,0,0,0,0,0]
[null,291,null,null,null,null,null,null,null,0,0,0,0,0]
[null,292,null,null,null,null,null,null,null,0,0,0,0,0]
[null,293,null,null,null,null,null,null,null,0,0,0,0,0]
[null,294,null,null,null,null,null,null,null,0,0,0,0,0]
[null,295,null,null,null,null,null,null,null,0,0,0,0,0]
[null,296,null,null,null,null,null,null,null,0,0,0,0,0]
[null,297,null,null,null,null,null,null,null,0,0,0,0,0]
[null,298,null,null,null,null,null,null,null,0,0,0,0,0]
[null,299,null,null,null,null,null,null,null,0,0,0,0,0]
[null,300,null,null,null,null,null,null,null,0,0,0,0,0]
[null,301,null,null,null,null,null,null,null,0,0,0,0,0]
[null,302,null,null,null,null,null,null,null,0,0,0,0,0]
[null,303,null,null,null,null,null,null,null,0,0,0,0,0]
[null,304,null,null,null,null,null,null,null,0,0,0,0,0]
[null,305,null,null,null,null,null,null,null,0,0,0,0,0]
[null,306,null,null,null,null,null,null,null,0,0,0,0,0]
[null,307,null,null,null,null,null,null,null,0,0,0,0,0]
[null,308,null,null,null,null,null,null,null,0,0,0,0,0]
[null,309,null,null,null,null,null,null,null,0,0,0,0,0]
[null,310,null,null,null,null,null,null,null,0,0,0,0,0]
[null,311,null,null,null,null,null,null,null,0,0,0,0,0]
[null,312,null,null,null,null,null,null,null,0,0,0,0,0]
[null,313,null,null,null,null,null,null,null,0,0,0,0,0]
[null,314,null,null,null,null,null,null,null,0,0,0,0,0]
[null,315,null,null,null,null,null,null,null,0,0,0,0,0]
[null,316,null,null,null,null,null,null,null,0,0,0,0,0]
[null,317,null,null,null,null,null,null,null,0,0,0,0,0]
[null,318,null,null,null,null,null,null,null,0,0,0,0,0]
[null,319,null,null,null,null,null,null,null,0,0,0,0,0]
[null,320,null,null,null,null,null,null,null,0,0,0,0,0]
[null,321,null,null,null,null,null,null,null,0,0,0,0,0]
[null,322,null,null,null,null,null,null,null,{"$f":"IF(G331>0,I331*0.3,0)","v":0},{"$f":"IF(H331>0,I331*0.5,0)","v":0},{"$f":"G331*I331*0.3","v":0},{"$f":"H331*I331*0.5","v":0},{"$f":"L331+M331","v":0}]
[null,323,null,null,null,null,null,null,null,0,0,0,0,0]
[null,324,null,null,null,null,null,null,null,0,0,0,0,0]
[null,325,null,null,null,null,null,null,null,0,0,0,0,0]
[null,326,null,null,null,null,null,null,null,0,0,0,0,0]
[null,327,null,null,null,null,null,null,null,0,0,0,0,0]
[null,328,null,null,null,null,null,null,null,0,0,0,0,0]
[null,329,null,null,null,null,null,null,null,0,0,0,0,0]
[null,330,null,null,null,null,null,null,null,0,0,0,0,0]
[null,331,null,null,null,null,null,null,null,0,0,0,0,0]
[null,332,null,null,null,null,null,null,null,0,0,0,0,0]
[null,333,null,null,null,null,null,null,null,0,0,0,0,0]
[null,334,null,null,null,null,null,null,null,0,0,0,0,0]
[null,335,null,null,null,null,null,null,null,0,0,0,0,0]
[null,336,null,null,null,null,null,null,null,0,0,0,0,0]
[null,337,null,null,null,null,null,null,null,0,0,0,0,0]
[null,338,null,null,null,null,null,null,null,0,0,0,0,0]
[null,339,null,null,null,null,null,null,null,0,0,0,0,0]
[null,340,null,null,null,null,null,null,null,0,0,0,0,0]
[null,341,null,null,null,null,null,null,null,0,0,0,0,0]
[null,342,null,null,null,null,null,null,null,0,0,0,0,0]
[null,343,null,null,null,null,null,null,null,0,0,0,0,0]
[null,344,null,null,null,null,null,null,null,0,0,0,0,0]
[null,345,null,null,null,null,null,null,null,0,0,0,0,0]
[null,346,null,null,null,null,null,null,null,0,0,0,0,0]
[null,347,null,null,null,null,null,null,null,0,0,0,0,0]
[null,348,null,null,null,null,null,null,null,0,0,0,0,0]
[null,349,null,null,null,null,null,null,null,0,0,0,0,0]
[null,350,null,null,null,null,null,null,null,0,0,0,0,0]
[null,351,null,null,null,null,null,null,null,0,0,0,0,0]
[null,352,null,null,null,null,null,null,null,0,0,0,0,0]
[null,353,null,null,null,null,null,null,null,0,0,0,0,0]
[null,354,null,null,null,null,null,null,null,0,0,0,0,0]
[null,355,null,null,null,null,null,null,null,0,0,0,0,0]
[null,356,null,null,null,null,null,null,null,0,0,0,0,0]
[null,357,null,null,null,null,null,null,null,0,0,0,0,0]
[null,358,null,null,null,null,null,null,null,0,0,0,0,0]
[null,359,null,null,null,null,null,null,null,0,0,0,0,0]
[null,360,null,null,null,null,null,null,null,0,0,0,0,0]
[null,361,null,null,null,null,null,null,null,0,0,0,0,0]
[null,362,null,null,null,null,null,null,null,0,0,0,0,0]
[null,363,null,null,null,null,null,null,null,0,0,0,0,0]
[null,364,null,null,null,null,null,null,null,0,0,0,0,0]
[null,365,null,null,null,null,null,null,null,0,0,0,0,0]
[null,366,null,null,null,null,null,null,null,0,0,0,0,0]
[null,367,null,null,null,null,null,null,null,0,0,0,0,0]
[null,368,null,null,null,null,null,null,null,0,0,0,0,0]
[null,369,null,null,null,null,null,null,null,0,0,0,0,0]
[null,370,null,null,null,null,null,null,null,0,0,0,0,0]
[null,371,null,null,null,null,null,null,null,0,0,0,0,0]
[null,372,null,null,null,null,null,null,null,0,0,0,0,0]
[null,373,null,null,null,null,null,null,null,0,0,0,0,0]
[null,374,null,null,null,null,null,null,null,0,0,0,0,0]
[null,375,null,null,null,null,null,null,null,0,0,0,0,0]
[null,376,null,null,null,null,null,null,null,0,0,0,0,0]
[null,377,null,null,null,null,null,null,null,0,0,0,0,0]
[null,378,null,null,null,null,null,null,null,0,0,0,0,0]
[null,379,null,null,null,null,null,null,null,0,0,0,0,0]
[null,380,null,null,null,null,null,null,null,0,0,0,0,0]
[null,381,null,null,null,null,null,null,null,0,0,0,0,0]
[null,382,null,null,null,null,null,null,null,0,0,0,0,0]
[null,383,null,null,null,null,null,null,null,0,0,0,0,0]
[null,384,null,null,null,null,null,null,null,0,0,0,0,0]
[null,385,null,null,null,null,null,null,null,0,0,0,0,0]
[null,386,null,null,null,null,null,null,null,{"$f":"IF(G395>0,I395*0.3,0)","v":0},{"$f":"IF(H395>0,I395*0.5,0)","v":0},{"$f":"G395*I395*0.3","v":0},{"$f":"H395*I395*0.5","v":0},{"$f":"L395+M395","v":0}]
[null,387,null,null,null,null,null,null,null,0,0,0,0,0]
[null,388,null,null,null,null,null,null,null,0,0,0,0,0]
[null,389,null,null,null,null,null,null,null,0,0,0,0,0]
[null,390,null,null,null,null,null,null,null,0,0,0,0,0]
[null,391,null,null,null,null,null,null,null,0,0,0,0,0]
[null,392,null,null,null,null,null,null,null,0,0,0,0,0]
[null,393,null,null,null,null,null,null,null,0,0,0,0,0]
[null,394,null,null,null,null,null,null,null,0,0,0,0,0]
[null,395,null,null,null,null,null,null,null,0,0,0,0,0]
[null,396,null,null,null,null,null,null,null,0,0,0,0,0]
[null,397,null,null,null,null,null,null,null,0,0,0,0,0]
[null,398,null,null,null,null,null,null,null,0,0,0,0,0]
[null,399,null,null,null,null,null,null,null,0,0,0,0,0]
[null,400,null,null,null,null,null,null,null,0,0,0,0,0]
[null,401,null,null,null,null,null,null,null,0,0,0,0,0]
[null,402,null,null,null,null,null,null,null,0,0,0,0,0]
[null,403,null,null,null,null,null,null,null,0,0,0,0,0]
[null,404,null,null,null,null,null,null,null,0,0,0,0,0]
[null,405,null,null,null,null,null,null,null,0,0,0,0,0]
[null,406,null,null,null,null,null,null,null,0,0,0,0,0]
[null,407,null,null,null,null,null,null,null,0,0,0,0,0]
[null,408,null,null,null,null,null,null,null,0,0,0,0,0]
[null,409,null,null,null,null,null,null,null,0,0,0,0,0]
[null,410,null,null,null,null,null,null,null,0,0,0,0,0]
[null,411,null,null,null,null,null,null,null,0,0,0,0,0]
[null,412,null,null,null,null,null,null,null,0,0,0,0,0]
[null,413,null,null,null,null,null,null,null,0,0,0,0,0]
[null,414,null,null,null,null,null,null,null,0,0,0,0,0]
[null,415,null,null,null,null,null,null,null,0,0,0,0,0]
[null,416,null,null,null,null,null,null,null,0,0,0,0,0]
[null,417,null,null,null,null,null,null,null,0,0,0,0,0]
[null,418,null,null,null,null,null,null,null,0,0,0,0,0]
[null,419,null,null,null,null,null,null,null,0,0,0,0,0]
[null,420,null,null,null,null,null,null,null,0,0,0,0,0]
[null,421,null,null,null,null,null,null,null,0,0,0,0,0]
[null,422,null,null,null,null,null,null,null,0,0,0,0,0]
[null,423,null,null,null,null,null,null,null,0,0,0,0,0]
[null,424,null,null,null,null,null,null,null,0,0,0,0,0]
[null,425,null,null,null,null,null,null,null,0,0,0,0,0]
[null,426,null,null,null,null,null,null,null,0,0,0,0,0]
[null,427,null,null,null,null,null,null,null,0,0,0,0,0]
[null,428,null,null,null,null,null,null,null,0,0,0,0,0]
[null,429,null,null,null,null,null,null,null,0,0,0,0,0]
[null,430,null,null,null,null,null,null,null,0,0,0,0,0]
[null,431,null,null,null,null,null,null,null,0,0,0,0,0]
[null,432,null,null,null,null,null,null,null,0,0,0,0,0]
[null,433,null,null,null,null,null,null,null,0,0,0,0,0]
[null,434,null,null,null,null,null,null,null,0,0,0,0,0]
[null,435,null,null,null,null,null,null,null,0,0,0,0,0]
[null,436,null,null,null,null,null,null,null,0,0,0,0,0]
[null,437,null,null,null,null,null,null,null,0,0,0,0,0]
[null,438,null,null,null,null,null,null,null,0,0,0,0,0]
[null,439,null,null,null,null,null,null,null,0,0,0,0,0]
[null,440,null,null,null,null,null,null,null,0,0,0,0,0]
[null,441,null,null,null,null,null,null,null,0,0,0,0,0]
[null,442,null,null,null,null,null,null,null,0,0,0,0,0]
[null,443,null,null,null,null,null,null,null,0,0,0,0,0]
[null,444,null,null,null,null,null,null,null,0,0,0,0,0]
[null,445,null,null,null,null,null,null,null,0,0,0,0,0]
[null,446,null,null,null,null,null,null,null,0,0,0,0,0]
[null,447,null,null,null,null,null,null,null,0,0,0,0,0]
[null,448,null,null,null,null,null,null,null,0,0,0,0,0]
[null,449,null,null,null,null,null,null,null,0,0,0,0,0]
[null,450,null,null,null,null,null,null,null,{"$f":"IF(G459>0,I459*0.3,0)","v":0},{"$f":"IF(H459>0,I459*0.5,0)","v":0},{"$f":"G459*I459*0.3","v":0},{"$f":"H459*I459*0.5","v":0},{"$f":"L459+M459","v":0}]
[null,451,null,null,null,null,null,null,null,0,0,0,0,0]
[null,452,null,null,null,null,null,null,null,0,0,0,0,0]
[null,453,null,null,null,null,null,null,null,0,0,0,0,0]
[null,454,null,null,null,null,null,null,null,0,0,0,0,0]
[null,455,null,null,null,null,null,null,null,0,0,0,0,0]
[null,456,null,null,null,null,null,null,null,0,0,0,0,0]
[null,457,null,null,null,null,null,null,null,0,0,0,0,0]
[null,458,null,null,null,null,null,null,null,0,0,0,0,0]
[null,459,null,null,null,null,null,null,null,0,0,0,0,0]
[null,460,null,null,null,null,null,null,null,0,0,0,0,0]
[null,461,null,null,null,null,null,null,null,0,0,0,0,0]
[null,462,null,null,null,null,null,null,null,0,0,0,0,0]
[null,463,null,null,null,null,null,null,null,0,0,0,0,0]
[null,464,null,null,null,null,null,null,null,0,0,0,0,0]
[null,465,null,null,null,null,null,null,null,0,0,0,0,0]
[null,466,null,null,null,null,null,null,null,0,0,0,0,0]
[null,467,null,null,null,null,null,null,null,0,0,0,0,0]
[null,468,null,null,null,null,null,null,null,0,0,0,0,0]
[null,469,null,null,null,null,null,null,null,0,0,0,0,0]
[null,470,null,null,null,null,null,null,null,0,0,0,0,0]
[null,471,null,null,null,null,null,null,null,0,0,0,0,0]
[null,472,null,null,null,null,null,null,null,0,0,0,0,0]
[null,473,null,null,null,null,null,null,null,0,0,0,0,0]
[null,474,null,null,null,null,null,null,null,0,0,0,0,0]
[null,475,null,null,null,null,null,null,null,0,0,0,0,0]
[null,476,null,null,null,null,null,null,null,0,0,0,0,0]
[null,477,null,null,null,null,null,null,null,0,0,0,0,0]
[null,478,null,null,null,null,null,null,null,0,0,0,0,0]
[null,479,null,null,null,null,null,null,null,0,0,0,0,0]
[null,480,null,null,null,null,null,null,null,0,0,0,0,0]
[null,481,null,null,null,null,null,null,null,0,0,0,0,0]
[null,482,null,null,null,null,null,null,null,0,0,0,0,0]
[null,483,null,null,null,null,null,null,null,0,0,0,0,0]
[null,484,null,null,null,null,null,null,null,0,0,0,0,0]
[null,485,null,null,null,null,null,null,null,0,0,0,0,0]
[null,486,null,null,null,null,null,null,null,0,0,0,0,0]
[null,487,null,null,null,null,null,null,null,0,0,0,0,0]
[null,488,null,null,null,null,null,null,null,0,0,0,0,0]
[null,489,null,null,null,null,null,null,null,0,0,0,0,0]
[null,490,null,null,null,null,null,null,null,0,0,0,0,0]
[null,491,null,null,null,null,null,null,null,0,0,0,0,0]
[null,492,null,null,null,null,null,null,null,0,0,0,0,0]
[null,493,null,null,null,null,null,null,null,0,0,0,0,0]
[null,494,null,null,null,null,null,null,null,0,0,0,0,0]
[null,495,null,null,null,null,null,null,null,0,0,0,0,0]
[null,496,null,null,null,null,null,null,null,0,0,0,0,0]
[null,497,null,null,null,null,null,null,null,0,0,0,0,0]
[null,498,null,null,null,null,null,null,null,0,0,0,0,0]
[null,499,null,null,null,null,null,null,null,0,0,0,0,0]
[null,500,null,null,null,null,null,null,null,0,0,0,0,0]
[null,null,null,"Summe der geplanten Kurse",{"$f":"SUM(E10:E509)","v":0}]
[]
[]
[null,null,null,"Summen Anlage 1",null,null,"unter 50 J.","über 50 J.",null,null,null,"für Teilnehmende \nunter 50","für Teilnehmende \nab 50","insgesamt"]
[null,null,null,"kalkulierte Anzahl der Fachkursteilnehmer/innen",null,null,{"$f":"SUM(G10:G509)","v":0},{"$f":"SUM(H10:H509)","v":0},null,"Zuschuss",null,{"$f":"SUM(L10:L509)","v":0},{"$f":"SUM(M10:M509)","v":0},{"$f":"L514+M514","v":0}]
[null,null,null,null,null,null,"insgesamt",null,"davon ESF-Mittel",null,null,{"$f":"L514*0.5","v":0},{"$f":"M514*0.5","v":0},{"$f":"N514*0.5","v":0}]
[null,null,null,null,null,null,{"$f":"G514+H514","v":0},null,"davon Landesmittel des Ministeriums für Wirtschaft, Arbeit und Wohnungsbau",null,null,{"$f":"L514*0.5","v":0},{"$f":"M514*0.5","v":0},{"$f":"N514*0.5","v":0}]
[null,null,null,null,null,null,null,null,null," + private Kofinanzierung (i.d.R.)",null,{"$f":"L514/0.3*0.7","v":0},{"$f":"M514","v":0},{"$f":"L517+M517","v":0}]
[null,null,null,null,null,null,null,null,null," = Gesamtausgaben",null,{"$f":"L514+L517","v":0},{"$f":"M514+M517","v":0},{"$f":"N514+N517","v":0}]
[null,null,null,{"$f":"IF(N514>300000,\"Der Höchstzuschuss pro Weiterbildungsträger und Jahr (12 Monate) liegt bei 300.000 €. Bitte überprüfen Sie Ihre Eingaben.\",\" \")","v":" "}]
[null,null,null,{"$f":"IF(N514<10000,\"Zuschüsse unter 10.000 € werden nicht bewilligt. Bitte überprüfen Sie Ihre Eingaben.\",\" \")","v":"Zuschüsse unter 10.000 € werden nicht bewilligt. Bitte überprüfen Sie Ihre Eingaben."}]